fUST/lending_fUST_20250722
["ID","MTS","AMOUNT","RATE_DAILY","PERIOD"]
[373931755,1753157439952,-460.0,0.00017043,2]
[373931756,1753157439961,-462.81341926,0.00017043,2]
[373931757,1753157439971,-460.0,0.00017043,2]
[373931758,1753157439981,-460.0,0.00017043,2]
[373931760,1753157439990,-1492.63,0.00017043,2]
[373931762,1753157439999,-460.0,0.00017043,2]
[373931764,1753157440008,-460.0,0.00017043,2]
[373931766,1753157440018,-462.8660783,0.00017043,2]
[373931768,1753157440027,-642.39,0.00017043,2]
[373931769,1753157440037,-460.0,0.00017043,2]
[373931770,1753157440046,-460.0,0.00017043,2]
[373931771,1753157440055,-460.0,0.00017043,2]
[373931772,1753157440064,-460.0,0.00017043,2]
[373931773,1753157440073,-500.0,0.00017043,2]
[373931774,1753157440084,-500.0,0.00017043,2]
[373931775,1753157440094,-500.0,0.00017043,2]
[373931776,1753157440103,-460.0,0.00017043,2]
[373931777,1753157440112,-1836.0,0.00017043,2]
[373931778,1753157440121,-1836.0,0.00017043,2]
[373931779,1753157440130,-460.0,0.00017043,2]
[373931780,1753157440139,-1836.0,0.00017043,2]
[373931781,1753157440151,-460.0,0.00017043,2]
[373931782,1753157440160,-460.0,0.00017043,2]
[373931783,1753157440170,-460.0,0.00017043,2]
[373931784,1753157440179,-460.0,0.00017043,2]
[373931785,1753157440189,-460.0,0.00017043,2]
[373931786,1753157440198,-460.0,0.00017043,2]
[373931787,1753157440207,-3276.24,0.00017043,2]
[373931788,1753157440216,-663.7,0.00017043,2]
[373931789,1753157440226,-460.0,0.00017043,2]
[373931790,1753157440235,-1615.58,0.00017043,2]
[373931791,1753157440245,-460.0,0.00017043,2]
[373931792,1753157440254,-460.0,0.00017043,2]
[373931793,1753157440266,-4769.0,0.00017043,2]
[373931794,1753157440275,-463.99569036,0.00017043,2]
[373931795,1753157440284,-460.0,0.00017043,2]
[373931796,1753157440293,-460.0,0.00017043,2]
[373931798,1753157440302,-465.3009541,0.00017043,2]
[373931800,1753157440312,-460.0,0.00017043,2]
[373931802,1753157440322,-462.58451632,0.00017043,2]
[373931804,1753157440332,-961.28,0.00017043,2]
[373931805,1753157440341,-460.7981892,0.00017043,2]
[373931806,1753157440351,-460.0,0.00017043,2]
[373931807,1753157440360,-460.0,0.00017044,2]
[373931808,1753157440369,-642.29,0.00017044,2]
[373931809,1753157440379,-466.62006278,0.00017044,2]
[373931810,1753157440388,-522.55213114,0.00017044,2]
[373931811,1753157440400,-460.0,0.00017044,2]
[373931813,1753157440410,-574.98,0.00017044,2]
[373931815,1753157440419,-460.0,0.00017044,2]
[373931817,1753157440429,-250.6523242,0.00017044,2]
[373931819,1753157440439,-460.0,0.00017044,2]
[373931821,1753157440456,-162.35027983,0.00017044,2]
[373931823,1753157440471,-460.0,0.00017044,2]
[373931825,1753157440481,-472.43,0.00017044,2]
[373931827,1753157440490,-460.0,0.00017044,2]
[373931829,1753157440500,-460.0,0.00017044,2]
[373931831,1753157440510,-460.0,0.00017044,2]
[373931833,1753157440519,-460.0,0.00017044,2]
[373931835,1753157440529,-460.0,0.00017044,2]
[373931837,1753157440538,-460.0,0.00017044,2]
[373931839,1753157440547,-460.0,0.00017044,2]
[373931841,1753157440556,-460.0,0.00017044,2]
[373931843,1753157440566,-460.0,0.00017044,2]
[373931845,1753157440575,-460.0,0.00017044,2]
[373931847,1753157440586,-460.0,0.00017044,2]
[373931849,1753157440596,-460.0,0.00017044,2]
[373931851,1753157440605,-460.0,0.00017044,2]
[373931853,1753157440614,-460.0,0.00017044,2]
[373931855,1753157440622,-460.0,0.00017044,2]
[373931857,1753157440631,-460.0,0.00017044,2]
[373931859,1753157440641,-465.31798002,0.00017044,2]
[373931861,1753157440653,-460.0,0.00017044,2]
[373931863,1753157440662,-460.0,0.00017044,2]
[373931865,1753157440671,-460.0,0.00017044,2]
[373931867,1753157440681,-460.0,0.00017044,2]
[373931868,1753157440690,-460.0,0.00017044,2]
[373931869,1753157440700,-461.82330426,0.00017044,2]
[373931870,1753157440709,-460.0,0.00017044,2]
[373931871,1753157440721,-460.0,0.00017044,2]
[373931872,1753157440732,-741.22,0.00017044,2]
[373931873,1753157440741,-344.66098048,0.00017044,2]
[373931874,1753157440750,-460.0,0.00017044,2]
[373931875,1753157440760,-461.7075258,0.00017044,2]
[373931876,1753157440769,-461.52029606,0.00017044,2]
[373931877,1753157440779,-461.85911815,0.00017044,2]
[373931878,1753157440788,-460.0,0.00017044,2]
[373931879,1753157440798,-894.38,0.00017044,2]
[373931880,1753157440809,-460.0,0.00017044,2]
[373931881,1753157440818,-606.8776371,0.00017044,2]
[373931882,1753157440827,-232.89396241,0.00017044,2]
[373931883,1753157440838,-460.0,0.00017044,2]
[373931884,1753157440848,-460.0,0.00017044,2]
[373931885,1753157440857,-460.0,0.00017044,2]
[373931887,1753157440867,-462.08499496,0.00017044,2]
[373931895,1753157441084,-460.0,0.00017044,2]
[373931896,1753157441093,-460.0,0.00017044,2]
[373931897,1753157441103,-460.0,0.00017044,2]
[373931898,1753157441112,-460.0,0.00017044,2]
[373931899,1753157441121,-461.79010418,0.00017044,2]
[373931900,1753157441131,-460.0,0.00017044,2]
[373931901,1753157441141,-460.0,0.00017044,2]
[373931902,1753157441153,-460.0,0.00017044,2]
[373931903,1753157441166,-460.0,0.00017044,2]
[373931904,1753157441176,-460.0,0.00017044,2]
[373931905,1753157441185,-460.0,0.00017044,2]
[373931906,1753157441196,-500.0,0.00017044,2]
[373931907,1753157441205,-460.0,0.00017044,2]
[373931908,1753157441214,-1857.94,0.00017044,2]
[373931909,1753157441224,-500.0,0.00017044,2]
[373931910,1753157441233,-1836.0,0.00017044,2]
[373931911,1753157441242,-460.0,0.00017044,2]
[373931912,1753157441252,-460.0,0.00017044,2]
[373931913,1753157441261,-500.0,0.00017045,2]
[373931914,1753157441271,-500.0,0.00017045,2]
[373931915,1753157441279,-445.38763467,0.00017045,2]
[373931916,1753157441289,-1836.0,0.00017045,2]
[373931917,1753157441299,-1836.0,0.00017045,2]
[373931918,1753157441309,-1836.0,0.00017045,2]
[373931919,1753157441318,-461.93152296,0.00017046,2]
[373931920,1753157441327,-460.0,0.00017046,2]
[373931921,1753157441336,-460.0,0.00017046,2]
[373931922,1753157441345,-460.0,0.00017046,2]
[373931923,1753157441354,-460.88465898,0.00017046,2]
[373931924,1753157441363,-461.17252775,0.00017046,2]
[373931925,1753157441373,-462.81035214,0.00017046,2]
[373931926,1753157441382,-461.34898599,0.00017046,2]
[373931927,1753157441391,-460.0,0.00017046,2]
[373931928,1753157441404,-460.0,0.00017046,2]
[373931929,1753157441414,-461.59036993,0.00017046,2]
[373931930,1753157441423,-460.0,0.00017046,2]
[373931931,1753157441432,-460.0,0.00017046,2]
[373931932,1753157441442,-1836.0,0.00017046,2]
[373931933,1753157441451,-470.42,0.00017046,2]
[373931934,1753157441460,-10375.95,0.00017046,2]
[373931935,1753157441470,-500.0,0.00017046,2]
[373931936,1753157441480,-500.0,0.00017046,2]
[373931937,1753157441500,-546.023428,0.00017046,2]
[373931938,1753157441520,-500.0,0.00017046,2]
[373931939,1753157441534,-500.0,0.00017046,2]
[373931940,1753157441544,-1836.0,0.00017047,2]
[373931941,1753157441553,-1836.0,0.00017047,2]
[373931942,1753157441562,-1836.0,0.00017047,2]
[373931943,1753157441572,-1836.0,0.00017047,2]
[373931944,1753157441581,-1836.0,0.00017047,2]
[373931945,1753157441590,-1836.0,0.00017047,2]
[373931946,1753157441599,-1836.0,0.00017047,2]
[373931947,1753157441608,-1836.0,0.00017047,2]
[373931948,1753157441618,-1836.0,0.00017047,2]
[373931949,1753157441627,-1836.0,0.00017047,2]
[373931950,1753157441636,-1836.0,0.00017047,2]
[373931951,1753157441649,-1836.0,0.00017047,2]
[373931952,1753157441659,-1836.0,0.00017047,2]
[373931953,1753157441669,-1836.0,0.00017047,2]
[373931954,1753157441678,-1836.0,0.00017047,2]
[373931955,1753157441688,-1836.22189244,0.00017047,2]
[373931956,1753157441697,-551.44539416,0.00017073,2]
[373931957,1753157441707,-547.08361476,0.00017073,2]
[373931958,1753157441718,-500.0,0.00017073,2]
[373931959,1753157441730,-500.0,0.00017073,2]
[373931960,1753157441739,-500.0,0.00017073,2]
[373931961,1753157441749,-501.06876292,0.00017073,2]
[373931962,1753157441760,-500.0,0.00017073,2]
[373931963,1753157441771,-505.56489667,0.00017073,2]
[373931964,1753157441780,-500.0,0.00017073,2]
[373931965,1753157441790,-502.64339329,0.00017073,2]
[373931966,1753157441799,-504.30457904,0.00017073,2]
[373931967,1753157441809,-500.0,0.00017073,2]
[373931968,1753157441819,-500.0,0.00017073,2]
[373931969,1753157441829,-539.04544864,0.00017073,2]
[373931970,1753157441839,-500.0,0.00017073,2]
[373931971,1753157441849,-500.18337289,0.00017073,2]
[373931972,1753157441859,-179.06905344,0.00017073,2]
[373931973,1753157441868,-500.0,0.00017073,2]
[373931974,1753157441878,-503.50332979,0.00017073,2]
[373931975,1753157441888,-508.41565789,0.00017073,2]
[373931976,1753157441899,-500.0,0.00017073,2]
[373931977,1753157441908,-500.0,0.00017073,2]
[373931978,1753157441918,-500.0,0.00017073,2]
[373931979,1753157441928,-500.0,0.00017073,2]
[373931980,1753157441938,-371.28990817,0.00017073,2]
[373931981,1753157441947,-500.0,0.00017073,2]
[373931982,1753157441957,-500.0,0.00017073,2]
[373931983,1753157441966,-500.0,0.00017073,2]
[373931984,1753157441976,-502.98951132,0.00017073,2]
[373931985,1753157441986,-320.76348213,0.00017073,2]
[373931986,1753157441995,-504.20277847,0.00017073,2]
[373931987,1753157442005,-500.0,0.00017073,2]
[373931988,1753157442015,-500.0,0.00017073,2]
[373931989,1753157442024,-230.49039423,0.00017073,2]
[373931990,1753157442033,-157.48194092,0.00017073,2]
[373931991,1753157442042,-501.5848709,0.00017073,2]
[373931992,1753157442165,-159.5878529,0.00017073,2]
[373931993,1753157442176,-500.0,0.00017073,2]
[373931994,1753157442185,-500.47415245,0.00017073,2]
[373931995,1753157442194,-500.69098951,0.00017073,2]
[373931996,1753157442204,-500.0,0.00017073,2]
[373931997,1753157442213,-212.29215106,0.00017073,2]
[373931998,1753157442223,-501.28405146,0.00017073,2]
[373931999,1753157442232,-500.0,0.00017073,2]
[373932000,1753157442241,-500.0,0.00017073,2]
[373932001,1753157442250,-500.0,0.00017073,2]
[373932002,1753157442260,-500.0,0.00017073,2]
[373932003,1753157442269,-486.69610021,0.00017073,2]
[373932004,1753157442278,-2343.18369426,0.00017084,2]
[373932005,1753157442288,-151.0,0.00017147,2]
[373932006,1753157442298,-2396.01,0.00017148,2]
[373932007,1753157442308,-2547.56,0.00017148,2]
[373932008,1753157442317,-3430.95,0.00017148,2]
[373932009,1753157442326,-460.0,0.00017148,2]
[373932010,1753157442336,-987.16,0.00017148,2]
[373932011,1753157442345,-461.71202458,0.00017148,2]
[373932012,1753157442354,-463.38160458,0.00017148,2]
[373932013,1753157442363,-3208.19,0.00017148,2]
[373932014,1753157442373,-1890.9,0.00017148,2]
[373932015,1753157442382,-460.0,0.00017148,2]
[373932016,1753157442392,-3213.13,0.00017148,2]
[373932017,1753157442405,-460.0,0.00017148,2]
[373932018,1753157442415,-563.15914466,0.00017148,2]
[373932019,1753157442424,-460.0,0.00017148,2]
[373932020,1753157442433,-151.0,0.00017152,2]
[373932021,1753157442443,-151.0,0.00017152,2]
[373932022,1753157442452,-151.0,0.00017173,2]
[373932023,1753157442461,-151.0,0.00017173,2]
[373932024,1753157442470,-417.0,0.00017186,2]
[373932025,1753157442481,-2343.18369426,0.00017203,2]
[373932026,1753157442491,-460.0,0.00017217,2]
[373932027,1753157442500,-462.32749318,0.00017217,2]
[373932028,1753157442509,-231.26232636,0.00017217,2]
[373932029,1753157442519,-460.0,0.00017217,2]
[373932030,1753157442528,-460.0,0.00017217,2]
[373932031,1753157442537,-460.0,0.00017217,2]
[373932032,1753157442547,-460.0,0.00017217,2]
[373932033,1753157442556,-923.14,0.00017217,2]
[373932034,1753157442565,-1019.9,0.00017217,2]
[373932035,1753157442575,-3216.22,0.00017217,2]
[373932036,1753157442584,-460.0,0.00017217,2]
[373932037,1753157442594,-466.10827602,0.00017218,2]
[373932038,1753157442603,-460.0,0.00017218,2]
[373932039,1753157442612,-460.0,0.00017218,2]
[373932040,1753157442622,-541.73092169,0.00017218,2]
[373932041,1753157442631,-464.41613691,0.00017218,2]
[373932042,1753157442641,-460.0,0.00017218,2]
[373932043,1753157442655,-460.0,0.00017218,2]
[373932044,1753157442664,-466.1690313,0.00017218,2]
[373932045,1753157442674,-5107.47,0.00017218,2]
[373932046,1753157442683,-1520.76,0.00017218,2]
[373932047,1753157442693,-1027.18,0.00017218,2]
[373932048,1753157442703,-460.0,0.00017218,2]
[373932049,1753157442713,-460.0,0.00017218,2]
[373932050,1753157442726,-460.0,0.00017218,2]
[373932051,1753157442736,-611.75,0.00017218,2]
[373932052,1753157442745,-4817.64,0.00017218,2]
[373932053,1753157442754,-460.0,0.00017218,2]
[373932054,1753157442766,-1033.11,0.00017218,2]
[373932055,1753157442775,-460.0,0.00017218,2]
[373932056,1753157442784,-2115.93,0.00017218,2]
[373932057,1753157442794,-1244.02,0.00017218,2]
[373932058,1753157442804,-505.25433279,0.00017219,2]
[373932059,1753157442813,-151.0,0.00017219,2]
[373932060,1753157442822,-151.0,0.00017219,2]
[373932061,1753157442832,-246.69771895,0.00017219,2]
[373932062,1753157442841,-151.0,0.00017219,2]
[373932063,1753157442851,-716.0,0.00017219,2]
[373932064,1753157442861,-151.0,0.00017219,2]
[373932065,1753157442871,-151.0,0.00017219,2]
[373932066,1753157442881,-156.18675662,0.00017219,2]
[373932067,1753157442890,-460.0,0.00017219,2]
[373932068,1753157442903,-460.0,0.00017219,2]
[373932069,1753157442913,-460.0,0.00017219,2]
[373932071,1753157442924,-460.0,0.00017219,2]
[373932072,1753157442934,-460.0,0.00017219,2]
[373932073,1753157442943,-460.0,0.00017219,2]
[373932074,1753157442952,-460.0,0.00017219,2]
[373932075,1753157442961,-460.0,0.00017219,2]
[373932076,1753157442970,-462.60962999,0.00017219,2]
[373932078,1753157442979,-460.0,0.00017219,2]
[373932080,1753157442988,-460.0,0.00017219,2]
[373932081,1753157442997,-460.0,0.00017219,2]
[373932082,1753157443008,-460.0,0.00017219,2]
[373932083,1753157443017,-462.61512538,0.00017219,2]
[373932084,1753157443027,-460.0,0.00017219,2]
[373932085,1753157443036,-460.0,0.00017219,2]
[373932086,1753157443046,-473.55043024,0.00017219,2]
[373932087,1753157443056,-460.0,0.00017219,2]
[373932088,1753157443065,-713.91,0.00017219,2]
[373932089,1753157443075,-460.0,0.00017219,2]
[373932090,1753157443084,-460.0,0.00017219,2]
[373932091,1753157443093,-460.0,0.00017219,2]
[373932092,1753157443103,-460.0,0.00017219,2]
[373932095,1753157443113,-460.0,0.00017219,2]
[373932097,1753157443123,-520.75024871,0.00017219,2]
[373932099,1753157443132,-463.86360476,0.00017219,2]
[373932101,1753157443141,-460.0,0.00017219,2]
[373932102,1753157443154,-460.0,0.00017219,2]
[373932105,1753157443163,-456.7044824,0.00017219,2]
[373932107,1753157443173,-513.29131247,0.00017219,2]
[373932108,1753157443182,-460.0,0.00017219,2]
[373932111,1753157443192,-460.0,0.00017219,2]
[373932112,1753157443206,-460.0,0.00017219,2]
[373932115,1753157443216,-460.0,0.00017219,2]
[373932117,1753157443225,-460.0,0.00017219,2]
[373932119,1753157443235,-460.0,0.00017219,2]
[373932121,1753157443244,-460.0,0.00017219,2]
[373932123,1753157443253,-463.33362544,0.00017219,2]
[373932125,1753157443263,-527.76,0.00017219,2]
[373932127,1753157443272,-487.41154843,0.00017219,2]
[373932128,1753157443281,-460.0,0.00017219,2]
[373932130,1753157443291,-460.0,0.00017219,2]
[373932132,1753157443300,-460.0,0.00017219,2]
[373932134,1753157443309,-486.75,0.00017219,2]
[373932136,1753157443319,-460.0,0.00017219,2]
[373932138,1753157443328,-460.0,0.00017219,2]
[373932141,1753157443338,-460.0,0.00017219,2]
[373932143,1753157443347,-537.44,0.00017219,2]
[373932145,1753157443356,-460.0,0.00017219,2]
[373932147,1753157443366,-460.0,0.00017219,2]
[373932149,1753157443375,-476.63845343,0.00017219,2]
[373932151,1753157443384,-460.0,0.00017219,2]
[373932152,1753157443393,-515.51,0.00017219,2]
[373932155,1753157443404,-460.0,0.00017219,2]
[373932157,1753157443414,-460.0,0.00017219,2]
[373932159,1753157443423,-460.0,0.00017219,2]
[373932161,1753157443432,-460.0,0.00017219,2]
[373932163,1753157443441,-460.0,0.00017219,2]
[373932165,1753157443450,-475.40331994,0.00017219,2]
[373932166,1753157443459,-460.0,0.00017219,2]
[373932167,1753157443470,-460.0,0.00017219,2]
[373932168,1753157443480,-460.0,0.00017219,2]
[373932169,1753157443490,-460.0,0.00017219,2]
[373932170,1753157443500,-460.0,0.00017219,2]
[373932171,1753157443509,-9991.89,0.00017219,2]
[373932173,1753157443519,-418.81516423,0.00017219,2]
[373932175,1753157443528,-460.0,0.00017219,2]
[373932177,1753157443537,-467.25125562,0.00017219,2]
[373932179,1753157443547,-460.0,0.00017219,2]
[373932182,1753157443556,-460.0,0.00017219,2]
[373932184,1753157443566,-460.0,0.00017219,2]
[373932186,1753157443575,-460.0,0.00017219,2]
[373932188,1753157443584,-460.0,0.00017219,2]
[373932189,1753157443593,-460.0,0.00017219,2]
[373932191,1753157443602,-460.0,0.00017219,2]
[373932193,1753157443611,-901.37,0.00017219,2]
[373932195,1753157443620,-468.73722291,0.00017219,2]
[373932198,1753157443630,-460.0,0.00017219,2]
[373932200,1753157443639,-460.0,0.00017219,2]
[373932201,1753157443651,-460.0,0.00017219,2]
[373932202,1753157443661,-460.0,0.00017219,2]
[373932203,1753157443670,-460.0,0.00017219,2]
[373932204,1753157443679,-460.0,0.00017219,2]
[373932205,1753157443689,-460.0,0.00017219,2]
[373932206,1753157443698,-460.0,0.00017219,2]
[373932207,1753157443708,-460.0,0.00017219,2]
[373932208,1753157443722,-460.0,0.00017219,2]
[373932209,1753157443740,-460.0,0.00017219,2]
[373932210,1753157443750,-460.0,0.00017219,2]
[373932211,1753157443760,-460.0,0.00017219,2]
[373932212,1753157443769,-460.0,0.00017219,2]
[373932213,1753157443779,-460.0,0.00017219,2]
[373932214,1753157443789,-1172.04,0.00017219,2]
[373932215,1753157443799,-460.0,0.00017219,2]
[373932216,1753157443808,-460.0,0.00017219,2]
[373932217,1753157443818,-460.0,0.00017219,2]
[373932218,1753157443827,-460.0,0.00017219,2]
[373932219,1753157443837,-1438.68,0.00017219,2]
[373932220,1753157443847,-460.0,0.00017219,2]
[373932221,1753157443857,-1388.47,0.00017219,2]
[373932222,1753157443868,-460.0,0.00017219,2]
[373932223,1753157443877,-959.19,0.00017219,2]
[373932224,1753157443887,-460.0,0.00017219,2]
[373932225,1753157443897,-460.0,0.00017219,2]
[373932226,1753157443918,-460.0,0.00017219,2]
[373932227,1753157443938,-460.0,0.00017219,2]
[373932229,1753157443948,-460.0,0.00017219,2]
[373932230,1753157443957,-460.0,0.00017219,2]
[373932231,1753157443967,-460.0,0.00017219,2]
[373932232,1753157443977,-460.0,0.00017219,2]
[373932233,1753157443987,-460.0,0.00017219,2]
[373932234,1753157443997,-983.0,0.00017219,2]
[373932235,1753157444007,-460.0,0.00017219,2]
[373932236,1753157444017,-460.0,0.00017219,2]
[373932237,1753157444026,-460.0,0.00017219,2]
[373932238,1753157444037,-4717.98,0.00017219,2]
[373932239,1753157444047,-1144.31,0.00017219,2]
[373932240,1753157444056,-460.0,0.00017219,2]
[373932241,1753157444066,-460.0,0.00017219,2]
[373932242,1753157444075,-460.0,0.00017219,2]
[373932243,1753157444085,-463.15140342,0.00017219,2]
[373932244,1753157444094,-1482.56,0.00017219,2]
[373932245,1753157444103,-151.0,0.00017219,2]
[373932246,1753157444112,-460.0,0.00017219,2]
[373932247,1753157444121,-460.0,0.00017219,2]
[373932248,1753157444130,-466.63514975,0.00017219,2]
[373932249,1753157444139,-460.0,0.00017219,2]
[373932250,1753157444151,-460.0,0.00017219,2]
[373932251,1753157444160,-463.6176202,0.00017219,2]
[373932252,1753157444169,-466.41436371,0.00017219,2]
[373932253,1753157444178,-1287.62,0.00017219,2]
[373932254,1753157444188,-895.53,0.00017219,2]
[373932255,1753157444197,-2097.13,0.00017219,2]
[373932256,1753157444207,-460.0,0.00017219,2]
[373932257,1753157444216,-578.54798297,0.00017219,2]
[373932258,1753157444225,-460.0,0.00017219,2]
[373932259,1753157444235,-424.27310023,0.00017219,2]
[373932260,1753157444245,-460.0,0.00017219,2]
[373932261,1753157444254,-460.0,0.00017219,2]
[373932262,1753157444264,-746.5,0.00017219,2]
[373932263,1753157444273,-472.45662599,0.00017219,2]
[373932264,1753157444283,-471.89490987,0.00017219,2]
[373932265,1753157444292,-460.0,0.00017219,2]
[373932266,1753157444301,-460.0,0.00017219,2]
[373932267,1753157444311,-460.0,0.00017219,2]
[373932268,1753157444320,-1436.52,0.00017219,2]
[373932269,1753157444329,-352.5228111,0.00017219,2]
[373932270,1753157444339,-459.06164029,0.00017219,2]
[373932271,1753157444348,-968.2,0.00017219,2]
[373932272,1753157444358,-460.0,0.00017219,2]
[373932273,1753157444367,-460.0,0.00017219,2]
[373932274,1753157444377,-501.49612056,0.00017219,2]
[373932275,1753157444387,-151.0,0.00017219,2]
[373932276,1753157444397,-151.0,0.00017219,2]
[373932277,1753157444410,-3766.72,0.00017219,2]
[373932278,1753157444419,-151.0,0.000173,2]
[373932279,1753157444429,-460.0,0.00017316,2]
[373932280,1753157444439,-463.88601594,0.00017316,2]
[373932281,1753157444448,-460.0,0.00017316,2]
[373932282,1753157444457,-265.21065748,0.00017316,2]
[373932283,1753157444467,-460.0,0.00017316,2]
[373932284,1753157444476,-586.24,0.00017316,2]
[373932285,1753157444485,-875.56,0.00017316,2]
[373932286,1753157444495,-1107.94,0.00017316,2]
[373932287,1753157444612,-1309.67,0.00017316,2]
[373932288,1753157444622,-472.43,0.00017316,2]
[373932289,1753157444631,-460.0,0.00017316,2]
[373932290,1753157444641,-460.0,0.00017316,2]
[373932291,1753157444653,-1235.69,0.00017316,2]
[373932292,1753157444664,-1109.78,0.00017316,2]
[373932293,1753157444673,-1365.04,0.00017316,2]
[373932294,1753157444683,-1373.31,0.00017316,2]
[373932295,1753157444693,-1034.84,0.00017316,2]
[373932296,1753157444702,-153.55897838,0.00017317,2]
[373932297,1753157444711,-947.0,0.00017317,2]
[373932298,1753157444725,-151.0,0.00017317,2]
[373932299,1753157444734,-460.0,0.00017317,2]
[373932300,1753157444743,-460.0,0.00017317,2]
[373932301,1753157444753,-461.24260034,0.00017317,2]
[373932302,1753157444762,-460.0,0.00017317,2]
[373932303,1753157444772,-460.0,0.00017317,2]
[373932304,1753157444781,-548.85813481,0.00017317,2]
[373932305,1753157444794,-460.0,0.00017317,2]
[373932306,1753157444804,-476.99198081,0.00017317,2]
[373932307,1753157444814,-460.0,0.00017317,2]
[373932308,1753157444823,-460.0,0.00017317,2]
[373932309,1753157444832,-460.0,0.00017317,2]
[373932310,1753157444842,-460.0,0.00017317,2]
[373932311,1753157444852,-460.0,0.00017317,2]
[373932312,1753157444862,-460.0,0.00017317,2]
[373932313,1753157444871,-460.0,0.00017317,2]
[373932314,1753157444881,-460.0,0.00017317,2]
[373932315,1753157444890,-460.0,0.00017317,2]
[373932316,1753157444903,-460.0,0.00017317,2]
[373932317,1753157444913,-574.23,0.00017317,2]
[373932318,1753157444923,-460.0,0.00017317,2]
[373932319,1753157444932,-470.61095494,0.00017317,2]
[373932320,1753157444942,-463.97500908,0.00017317,2]
[373932321,1753157444951,-1368.84,0.00017317,2]
[373932322,1753157444959,-460.0,0.00017317,2]
[373932323,1753157444969,-1248.03,0.00017317,2]
[373932324,1753157444978,-734.62,0.00017317,2]
[373932325,1753157444987,-473.8932571,0.00017317,2]
[373932326,1753157444996,-460.0,0.00017317,2]
[373932327,1753157445006,-460.0,0.00017317,2]
[373932328,1753157445015,-465.49053133,0.00017317,2]
[373932329,1753157445024,-1479.12,0.00017317,2]
[373932330,1753157445034,-493.18,0.00017317,2]
[373932331,1753157445043,-460.0,0.00017317,2]
[373932332,1753157445052,-460.0,0.00017317,2]
[373932333,1753157445061,-662.43,0.00017317,2]
[373932334,1753157445070,-460.0,0.00017317,2]
[373932335,1753157445079,-460.0,0.00017317,2]
[373932336,1753157445089,-460.0,0.00017317,2]
[373932337,1753157445098,-511.55253661,0.00017317,2]
[373932338,1753157445108,-460.0,0.00017317,2]
[373932339,1753157445117,-894.47,0.00017317,2]
[373932340,1753157445126,-460.0,0.00017317,2]
[373932341,1753157445135,-460.0,0.00017317,2]
[373932342,1753157445145,-460.0,0.00017317,2]
[373932343,1753157445156,-460.0,0.00017317,2]
[373932344,1753157445165,-460.0,0.00017317,2]
[373932345,1753157445175,-1792.3,0.00017317,2]
[373932346,1753157445184,-589.76,0.00017317,2]
[373932347,1753157445194,-585.75,0.00017317,2]
[373932348,1753157445203,-460.0,0.00017317,2]
[373932349,1753157445212,-1492.63,0.00017317,2]
[373932350,1753157445222,-460.0,0.00017317,2]
[373932351,1753157445231,-460.0,0.00017317,2]
[373932352,1753157445240,-642.39,0.00017317,2]
[373932353,1753157445249,-460.0,0.00017317,2]
[373932354,1753157445258,-460.0,0.00017317,2]
[373932355,1753157445267,-460.0,0.00017317,2]